fUSD/lending_fUSD_20240623
["ID","MTS","AMOUNT","RATE_DAILY","PERIOD"]
[330218773,1719177068177,151.0,0.00020469,120]
[330218779,1719177152607,2586.64560587,0.00010201,2]
[330218781,1719177188844,3021.82,0.00018849,30]
[330218792,1719177379178,641.32,9.073e-05,2]
[330218803,1719177609146,151.0,0.00020469,120]
[330218806,1719177720523,2770.0,0.00018849,30]
[330218808,1719177919780,609.25,8.471e-05,2]
[330218810,1719177966800,151.0,0.00020469,120]
[330218812,1719178113958,-150.0,0.00010243,2]
[330218813,1719178113979,-250.0,0.00010295,2]
[330218814,1719178113999,-2896.96,0.00010336,2]
[330218815,1719178114020,-300.0,0.00010336,2]
[330218816,1719178114042,-22777.04,0.00010337,2]
[330218822,1719178153631,1000.0,0.00025,60]
[330218823,1719178158126,-1122.96,0.00010337,2]
[330218824,1719178158150,-167.13,0.00010373,2]
[330218825,1719178158172,-315.31,0.00010424,2]
[330218826,1719178158194,-600.0,0.00010704,2]
[330218827,1719178158214,-2679.75,0.00010716,2]
[330218828,1719178158236,-300.0,0.00010734,2]
[330218829,1719178158258,-609.25,0.00010735,2]
[330218830,1719178158278,-3434.88,0.00010735,2]
[330218831,1719178158298,-159.85756079,0.00010803,2]
[330218832,1719178158318,-208.2521774,0.00010856,2]
[330218833,1719178158339,-499.99,0.00010955,2]
[330218834,1719178158360,-9902.62026181,0.00010955,2]
[330218835,1719178159071,-17411.56973819,0.00010955,2]
[330218836,1719178159093,-250.0,0.00010958,2]
[330218837,1719178159115,-2338.43026181,0.00010958,2]
[330218840,1719178204991,-250.0,0.00010745,2]
[330218841,1719178205013,-363.75372231,0.00010802,2]
[330218842,1719178205036,-5598.66973819,0.00010958,2]
[330218843,1719178205058,-150.0,0.00010959,2]
[330218844,1719178205080,-606.74,0.00010965,2]
[330218845,1719178205102,-169.54,0.00010976,2]
[330218846,1719178205128,-438.00098198,0.00011052,2]
[330218847,1719178205151,-300.0,0.00011096,2]
[330218848,1719178205173,-150.0,0.00011096,2]
[330218849,1719178213575,-3022.81708204,0.00011097,2]
[330218850,1719178213596,-13029.38670527,0.00011223,2]
[330218869,1719178233002,-438.00098198,0.00011052,2]
[330218870,1719178233012,-3022.81708204,0.00011095,2]
[330218871,1719178233023,-9612.06749208,0.00011223,2]
[330218872,1719178233035,-2068.09148672,0.00011223,2]
[330218873,1719178233045,-1659.157025,0.00011232,2]
[330218874,1719178233055,-2000.0,0.00011233,3]
[330218875,1719178233064,-299.99,0.00011233,2]
[330218876,1719178233073,-418.39,0.000113,2]
[330218877,1719178233083,-852.82,0.000113,2]
[330218878,1719178233091,-1263.08088063,0.00011516,2]
[330218879,1719178233101,-409.51791819,0.00011551,2]
[330218880,1719178233110,-155.0,0.00011643,2]
[330218881,1719178233119,-440.06610721,0.00011644,2]
[330218882,1719178233128,-155.0,0.0001172,2]
[330218883,1719178233137,-747.56908325,0.00011721,2]
[330218884,1719178233147,-888.02013375,0.0001176,2]
[330218885,1719178233156,-1000.0,0.00011778,2]
[330218886,1719178233165,-482.87871356,0.00011799,2]
[330218887,1719178233175,-2508.7196,0.000118,2]
[330218888,1719178233184,-330.9619,0.000118,2]
[330218889,1719178233193,-1416.216,0.000118,2]
[330218890,1719178233202,-715.77761269,0.000118,2]
[330218892,1719178233214,-10795.61311371,0.000118,2]
[330218894,1719178233225,-21616.54762948,0.000118,2]
[330218896,1719178233269,-394.95499992,0.000118,2]
[330218897,1719178233280,-343.435,0.000118,2]
[330218898,1719178233291,-87465.6040977,0.000118,2]
[330218914,1719178238179,-679.88073173,0.000118,2]
[330218915,1719178238370,-1119.95985758,0.000118,2]
[330218916,1719178238382,-1714.18295719,0.000118,2]
[330218917,1719178238392,-694.06027237,0.000118,2]
[330218919,1719178238402,-155.0,0.00011809,2]
[330218921,1719178238411,-155.0,0.00011809,2]
[330218923,1719178238421,-155.0,0.00011809,2]
[330218925,1719178238431,-155.0,0.00011841,2]
[330218927,1719178238440,-304.87399131,0.00011841,2]
[330218929,1719178238449,-400.0,0.00011842,2]
[330218931,1719178238458,-162.07,0.00011846,2]
[330218933,1719178238468,-694.06027236,0.0001185,2]
[330218935,1719178238478,-161.3773855,0.0001189,2]
[330218937,1719178238487,-364.75980531,0.00011899,2]
[330218939,1719178238497,-364.75980531,0.00011899,2]
[330218941,1719178238506,-1668.58431648,0.000119,2]
[330218943,1719178238518,-8331.41568352,0.000119,2]
[330218945,1719178238528,-1000.0,0.000119,2]
[330218947,1719178238538,-500.0,0.000119,2]
[330218949,1719178238547,-1531.08790152,0.000119,2]
[330219046,1719178240329,-158.25040673,0.00011849,2]
[330219047,1719178240341,-98468.91209848,0.000119,2]
[330219048,1719178240353,-65922.61749487,0.000119,2]
[330219049,1719178240544,-2412.60302546,0.000119,2]
[330219050,1719178240557,-1596.88006637,0.000119,2]
[330219051,1719178240570,-2371.47496843,0.000119,2]
[330219052,1719178240582,-172696.42444487,0.000119,2]
[330219053,1719178240593,-4166.2886,0.000119,2]
[330219054,1719178240603,-4891.7275,0.000119,2]
[330219055,1719178240613,-804.0432,0.000119,2]
[330219056,1719178240624,-3166.2426,0.000119,2]
[330219057,1719178240636,-33620.9001,0.000119,2]
[330219058,1719178240646,-186.33834046,0.000119,2]
[330219059,1719178240660,-4829.8355,0.000119,2]
[330219060,1719178240671,-46246.0859,0.000119,2]
[330219061,1719178240681,-1000.0,0.000119,2]
[330219062,1719178240691,-174.01036977,0.000119,2]
[330219063,1719178240704,-23088.98570249,0.000119,2]
[330219064,1719178240714,-195.46100003,0.000119,2]
[330219065,1719178240725,-694.06027236,0.000119,2]
[330219066,1719178240736,-1065.2824694,0.000119,2]
[330219067,1719178240748,-155.0,0.00011903,2]
[330219069,1719178240760,-269.27286365,0.00011903,2]
[330219071,1719178240771,-500.0,0.00011904,2]
[330219072,1719178240782,-537.26,0.00011922,2]
[330219073,1719178240792,-614.0,0.00011922,2]
[330219074,1719178240805,-812.0,0.00011922,2]
[330219075,1719178240815,-699.6978472,0.00011988,2]
[330219076,1719178240825,-366.11090361,0.00011989,2]
[330219077,1719178240836,-583.6702797,0.00011991,2]
[330219078,1719178240846,-6663.1134271,0.00011991,2]
[330219079,1719178240855,-163.61123882,0.00011991,2]
[330219080,1719178240865,-1780.0295443,0.00011992,2]
[330219081,1719178240874,-38000.91675788,0.00011992,2]
[330219082,1719178240886,-6671.55597476,0.00011992,2]
[330219083,1719178240898,-500.0,0.00011992,2]
[330219084,1719178240910,-2317.16226982,0.00011992,2]
[330219085,1719178240922,-340.78144659,0.00011992,2]
[330219086,1719178240933,-1896.21064048,0.00011992,2]
[330219087,1719178240994,-406.44,0.00011992,2]
[330219090,1719178241006,-312.3160075,0.00011992,2]
[330219091,1719178241018,-4525.31458887,0.00011992,2]
[330219092,1719178241027,-5454.4454805,0.00011992,2]
[330219093,1719178241036,-4245.7775338,0.00011992,2]
[330219094,1719178241045,-639.5730573,0.00011992,2]
[330219095,1719178241059,-579.4482674,0.00011992,2]
[330219096,1719178241069,-202.01806079,0.00011995,2]
[330219097,1719178241079,-526.41386275,0.00011998,2]
[330219098,1719178241100,-526.41386275,0.00011998,2]
[330219099,1719178241121,-235.21210657,0.00011999,2]
[330219100,1719178241139,-235.21210657,0.00011999,2]
[330219101,1719178241155,-633.0,0.00012,2]
[330219102,1719178241173,-939812.87955413,0.00012,2]
[330219103,1719178241194,-442.88999996,0.00012,2]
[330219104,1719178241216,-309.12639055,0.00012,2]
[330219105,1719178241236,-629.96234234,0.00012,2]
[330219106,1719178241574,-253.61218112,0.00012,2]
[330219107,1719178241595,-12290.05429509,0.00012,2]
[330219125,1719178243184,-155.0,0.00011799,2]
[330219129,1719178243197,-4174.33041893,0.00012,2]
[330219152,1719178243390,-9125.41701027,0.00012,2]
[330219153,1719178243410,-10184.91313959,0.00012,2]
[330219154,1719178243429,-664.83272804,0.00012,2]
[330219155,1719178243446,-1765.648,0.00012,2]
[330219156,1719178243464,-11318.76679575,0.00012,2]
[330219157,1719178243485,-7113.01999999,0.00012,2]
[330219158,1719178243641,-155.0,0.00011998,2]
[330219159,1719178243657,-17756.6543373,0.00012,2]
[330219160,1719178243675,-3292.164575,0.00012,2]
[330219161,1719178243689,-773.50363265,0.00012,2]
[330219162,1719178243701,-709.17,0.00012,2]
[330219163,1719178243714,-14435.04513219,0.00012,2]
[330219164,1719178243726,-302.09356369,0.00012,2]
[330219165,1719178243738,-23521.76724492,0.00012,2]
[330219166,1719178243754,-650.96828781,0.00012,2]
[330219201,1719178244286,-19757.05064113,0.00012,2]
[330219256,1719178247111,-364.75980531,0.00011889,2]
[330219257,1719178247121,-366.11090361,0.00011971,2]
[330219258,1719178247131,-644.0,0.00012,2]
[330219259,1719178247141,-2595.10420317,0.00012,2]
[330219260,1719178247339,-161.37738551,0.0001199,2]
[330219261,1719178247349,-728.93993157,0.00012,2]
[330219262,1719178247361,-256465.84142084,0.00012,2]
[330219263,1719178247372,-2403.57912576,0.00012,2]
[330219264,1719178247384,-96901.71197274,0.00012,2]
[330219265,1719178247396,-1445.92125572,0.00012,2]
[330219266,1719178247407,-10469.58564534,0.00012,2]
[330219267,1719178247558,-16344.51668327,0.00012,2]
[330219268,1719178247571,-8036.765211,0.00012,2]
[330219269,1719178314721,2539.16,0.00018849,30]
[330219280,1719178379956,157.062405,0.00025,71]
[330219282,1719178383542,157.062405,0.00025,71]
[330219285,1719178394551,157.062405,0.00025,65]
[330219287,1719178398384,157.062405,0.00025,66]
[330219289,1719178408429,157.062405,0.00025,67]
[330219291,1719178470959,607.96,9.416e-05,2]
[330219293,1719178538276,151.0,0.00019855,30]
[330219295,1719178620384,23642.47520948,0.00012,30]
[330219299,1719178710367,588.0,0.0001199,30]
[330219300,1719178710859,588.0,0.0001198,30]
[330219301,1719178711563,588.0,0.0001197,30]
[330219302,1719178711856,588.0,0.0001398,30]
[330219303,1719178712693,588.0,0.0001397,30]
[330219304,1719178712932,588.0,0.0001396,30]
[330219305,1719178713456,588.0,0.0001489,30]
[330219306,1719178714038,588.0,0.0001488,30]
[330219307,1719178714742,588.0,0.0001889,30]
[330219308,1719178715259,590.0,0.0001888,30]
[330219314,1719179029454,2327.56,0.00018849,30]
[330219317,1719179091159,577.56,8.883e-05,2]
[330219318,1719179211116,-155.0041176,0.00010667,2]
[330219319,1719179394717,-661.40067281,0.00010445,2]
[330219320,1719179394742,-250.0,0.00010465,2]
[330219321,1719179394766,-520.0,0.00010523,2]
[330219322,1719179394795,-250.0,0.00010545,2]
[330219323,1719179394824,-2031.98,0.00010581,2]
[330219324,1719179394847,-297.91,0.00010627,2]
[330219325,1719179394875,-7.0658824,0.00010667,2]
[330219326,1719179394898,-217.96300349,0.00010768,2]
[330219327,1719179394922,-14256.29,0.00010784,2]
[330219328,1719179394945,-191.76,0.00010868,2]
[330219329,1719179394969,-480.0,0.00010933,2]
[330219330,1719179394992,-499.99,0.00010998,2]
[330219331,1719179395016,-335.6404413,0.00011,2]
[330219345,1719179434626,-300.0,0.00010999,2]
[330219346,1719179434635,-81.69396082,0.00011,2]
[330219349,1719179434647,-1071.32430337,0.00011,2]
[330219351,1719179434658,-829.59060237,0.00011,2]
[330219353,1719179434670,-475.15035257,0.00011,2]
[330219357,1719179439345,-333.80672062,0.00011,2]
[330219358,1719179439357,-7930.2127496,0.00011,2]
[330219359,1719179439770,-3624.59665185,0.00011,2]
[330219360,1719179439780,-150.0,0.00011014,2]
[330219361,1719179439790,-170.06,0.00011032,2]
[330219362,1719179439800,-155.0,0.00011097,2]
[330219363,1719179439809,-577.56,0.00011147,2]
[330219364,1719179439819,-242.09159978,0.00011199,2]
[330219365,1719179439828,-242.09159978,0.00011199,2]
[330219366,1719179439837,-155.0,0.00011199,2]
[330219367,1719179439847,-7157.48720559,0.000112,2]
[330219368,1719179439856,-196.17673017,0.00011297,2]
[330219369,1719179439865,-8873.4826,0.0001166,2]
[330219370,1719179439875,-1422.24888737,0.00011699,2]
[330219371,1719179439884,-1629.7754948,0.000117,2]
[330219372,1719179439896,-2132.95884042,0.000117,2]
[330219373,1719179439908,-9462.01302718,0.000117,2]
[330219374,1719179439919,-29212.98052615,0.000117,2]
[330219375,1719179439930,-907.87201028,0.000117,2]
[330219376,1719179439943,-2734.25669572,0.000117,2]
[330219377,1719179439954,-2260.07028633,0.000117,2]
[330219378,1719179439965,-44529.52610232,0.000117,2]
[330219379,1719179439977,-529.12011047,0.000117,2]
[330219380,1719179439988,-4337.32230633,0.000117,2]
[330219381,1719179439997,-181.04155218,0.000117,2]
[330219382,1719179440007,-343.61912706,0.0001176,2]
[330219383,1719179440017,-343.61912706,0.0001176,2]
[330219384,1719179440026,-155.0,0.00011795,2]
[330219385,1719179440035,-500.0,0.000118,2]
[330219386,1719179440046,-6478.30482458,0.000118,2]
[330219387,1719179440067,-70512.55288488,0.000118,2]
[330219388,1719179440078,-457.72973876,0.000118,2]
[330219389,1719179440848,-622.56503405,0.000118,2]
[330219391,1719179441307,-124368.63261773,0.000118,2]
[330219393,1719179441316,-1223.58816666,0.000118,2]
[330219394,1719179441325,-181.04155216,0.000118,2]
[330219396,1719179441335,-520.0,0.00011839,2]
[330219398,1719179441344,-3000.0,0.0001188,2]
[330219400,1719179441353,-33184.64615328,0.00011899,2]
[330219401,1719179441362,-155.94476457,0.000119,2]
[330219402,1719179441371,-10000.0,0.000119,2]
[330219403,1719179441381,-21164.90356057,0.000119,2]
[330219404,1719179441391,-181.04155216,0.000119,2]
[330219405,1719179441401,-167.538,0.000119,2]
[330219406,1719179441411,-159.54468588,0.00011903,2]
[330219407,1719179441422,-500.0,0.00011904,2]
[330219408,1719179441431,-155.0,0.00011971,2]
[330219409,1719179441441,-217.84498894,0.00011989,2]
[330219410,1719179441450,-217.84498894,0.00011989,2]
[330219411,1719179441461,-184.43129772,0.0001199,2]
[330219412,1719179441471,-229.5993438,0.00011991,2]
[330219413,1719179441480,-37433.9023297,0.00011991,2]
[330219414,1719179441489,-1639.0150866,0.00011991,2]
[330219415,1719179441499,-155.0,0.00011991,2]
[330219416,1719179441508,-846.6374922,0.00011991,2]
[330219417,1719179441517,-229.5993438,0.00011992,2]
[330219418,1719179441526,-229.5993438,0.00011992,2]
[330219419,1719179441535,-30812.3945726,0.00011992,2]
[330219420,1719179441544,-24190.8868156,0.00011992,2]
[330219421,1719179441553,-1349.0973801,0.00011992,2]
[330219422,1719179441562,-1059.1796736,0.00011992,2]
[330219423,1719179441571,-778.6466552,0.00011992,2]
[330219424,1719179441580,-710.6558182,0.00011992,2]
[330219425,1719179441589,-209.38100041,0.00011999,2]
[330219426,1719179441598,-5907.85263176,0.00011999,2]
[330219427,1719179441607,-535.0,0.00012,2]
[330219428,1719179441616,-201483.43180871,0.00012,2]
[330219429,1719179441628,-1142.29438184,0.00012,2]
[330219430,1719179441639,-703.9999999,0.00012,2]
[330219431,1719179441650,-848.20750399,0.00012,2]
[330219432,1719179441661,-325.67999989,0.00012,2]
[330219433,1719179441672,-265.760515,0.00012,2]
[330219434,1719179441682,-3424.5,0.00012,2]
[330219435,1719179441693,-32935.320011,0.00012,2]
[330219436,1719179441703,-763.48000001,0.00012,2]
[330219437,1719179441714,-134261.48396007,0.00012,2]
[330219438,1719179441727,-35180.0,0.00012,2]
[330219439,1719179441737,-2733.77016568,0.00012,2]
[330219440,1719179441748,-337.21636402,0.00012,2]
[330219441,1719179441875,-8364.0002197,0.00012,2]
[330219445,1719179443800,-2552348.23044836,0.00012,2]
[330219448,1719179443812,-1023.82317081,0.00012,2]
[330219451,1719179443823,-805.58956756,0.00012,2]
[330219453,1719179443835,-10835.57489696,0.00012,2]
[330219455,1719179443847,-1026.45642444,0.00012,2]
[330219458,1719179443861,-559.40606601,0.00012,2]
[330219460,1719179443872,-835.780956,0.00012,2]
[330219462,1719179443883,-328.7496445,0.00012,2]
[330219464,1719179443894,-1747.575,0.00012,2]
[330219466,1719179443904,-1195.72257606,0.00012,2]
[330219468,1719179443915,-840.64392545,0.00012,2]
[330219470,1719179443927,-762.79097635,0.00012,2]
[330219472,1719179443938,-410.96644255,0.00012,2]
[330219474,1719179443949,-51121.70163161,0.00012,2]
[330219475,1719179443959,-294.14994472,0.00012,2]
[330219476,1719179444290,-5715.72049197,0.00012,2]
[330219486,1719179444454,-693.45276,0.00012,2]
[330219487,1719179444466,-529.7399354,0.00012,2]
[330219488,1719179444478,-301.616,0.00012,2]
[330219497,1719179448177,-155.0,0.00011759,2]
[330219498,1719179448187,-170.74924272,0.00012,2]
[330219499,1719179448388,-800.05096832,0.00012,2]
[330219500,1719179448400,-774.10747346,0.00012,2]
[330219501,1719179448411,-824.59977352,0.00012,2]
[330219502,1719179448423,-2497.79507697,0.00012,2]
[330219503,1719179448434,-1427.36830522,0.00012,2]
[330219504,1719179448445,-235681.67277337,0.00012,2]
[330219505,1719179448457,-1418.946,0.00012,2]
[330219506,1719179448468,-33048.83433905,0.00012,2]
[330219508,1719179448577,-322.51994525,0.00012,2]
[330219510,1719179448588,-12718.08216078,0.00012,2]
[330219512,1719179448600,-1313.87865291,0.00012,2]
[330219515,1719179448611,-373.49520537,0.00012,2]
[330219517,1719179448623,-1907.67492,0.00012,2]
[330219519,1719179448636,-2250.53767768,0.00012,2]
[330219521,1719179448648,-1774.86208729,0.00012,2]
[330219524,1719179448659,-32951.44758523,0.00012,2]
[330219528,1719179448695,-6000.0,0.00012,2]
[330219530,1719179448706,-7511.43041172,0.00012,2]
[330219533,1719179448718,-2157.37149173,0.00012,2]
[330219535,1719179448733,-2325.64980315,0.00012,2]
[330219537,1719179448745,-46240.87457411,0.00012,2]
[330219539,1719179448756,-1383.40857251,0.00012,2]
[330219541,1719179448769,-1462.76416002,0.00012,2]
[330219544,1719179448781,-27330.41277066,0.00012,2]
[330219546,1719179448792,-32344.28612523,0.00012,2]
[330219548,1719179448803,-103558.94791634,0.00012,2]
[330219550,1719179448814,-47370.02553739,0.00012,2]
[330219552,1719179448826,-155527.82433044,0.00012,2]
[330219555,1719179448837,-646.58590605,0.00012,2]
[330219557,1719179448848,-7403.1204677,0.00012,2]
[330219559,1719179448860,-1002.44274149,0.00012,2]
[330219561,1719179448872,-32313.05553848,0.00012,2]
[330219563,1719179448883,-690.600222,0.00012,2]
[330219565,1719179448894,-768.06384375,0.00012,2]
[330219568,1719179448905,-11173.27156439,0.00012,2]
[330219570,1719179448916,-267.2327988,0.00012,2]
[330219577,1719179448978,-13513.4435892,0.00012,2]
[330219659,1719179591256,200.0,0.00025452,120]
[330219660,1719179592216,169.71,8.977e-05,2]
[330219661,1719179592268,200.0,0.00025999,120]
[330219662,1719179595589,1000.0,0.00025452,120]
[330219664,1719179619135,20000.0,0.0002375,90]
[330219665,1719179619179,405.26701041,0.00021975,90]
[330219666,1719179633379,2133.59,0.00018849,30]
[330219667,1719179702385,671.02,9.186e-05,2]
[330219668,1719179772004,167.6,8.805e-05,2]
[330219669,1719180191098,1955.79,0.00018849,30]
[330219671,1719180265792,637.46,8.435e-05,2]
[330219672,1719180502474,1898.99760342,0.00010184,2]
[330219673,1719180548147,529.72889138,9.4e-05,2]
[330219674,1719180605276,156.3138,0.00010191,2]
[330219696,1719180633163,-360.35116936,0.00010285,2]
[330219697,1719180633175,-440.66315734,0.00010285,2]
[330219698,1719180633229,-738.7856733,0.00010285,2]
[330219699,1719180633239,-250.0,0.00010291,2]
[330219700,1719180633248,-170.06,0.00010336,2]
[330219701,1719180633257,-197.62738435,0.0001042,2]
[330219702,1719180633268,-52.37261565,0.0001042,2]
[330219703,1719180633279,-312.0,0.00010473,2]
[330219704,1719180633299,-161.13595753,0.00010545,2]
[330219705,1719180633312,-150.0,0.00010614,2]
[330219706,1719180633322,-247.0228477,0.00010614,2]
[330219707,1719180633335,-52.9771523,0.00010614,2]
[330219708,1719180633346,-428.74095174,0.00010615,2]
[330219709,1719180633359,-499.40807414,0.00010615,2]
[330219710,1719180633373,-22961.85097412,0.00010615,2]
[330219711,1719180633384,-163.8,0.00010653,2]
[330219712,1719180633396,-637.46,0.00010699,2]
[330219713,1719180633406,-611.8,0.00010699,2]
[330219714,1719180633418,-688.0,0.00010727,2]
[330219715,1719180633433,-166.71,0.00010888,2]
[330219716,1719180633444,-242.09159978,0.00010941,2]
[330219717,1719180633456,-196.17673017,0.00010993,2]
[330219718,1719180633465,-158.13028873,0.00010993,2]
[330219719,1719180633475,-418.39,0.00011041,2]
[330219720,1719180633484,-418.39,0.00011041,2]
[330219721,1719180633495,-499.99,0.00011097,2]
[330219722,1719180633508,-418.39,0.00011141,2]
[330219723,1719180633519,-418.39,0.00011141,2]
[330219724,1719180633529,-418.39,0.00011241,2]
[330219725,1719180633540,-852.82,0.00011241,2]
[330219726,1719180633549,-418.39,0.00011241,2]
[330219727,1719180633561,-852.82,0.00011241,2]
[330219728,1719180633572,-852.82,0.00011241,2]
[330219729,1719180633583,-418.39,0.00011241,2]
[330219730,1719180633593,-418.39,0.00011241,2]
[330219731,1719180633604,-852.82,0.00011241,2]
[330219732,1719180633614,-418.39,0.00011241,2]
[330219733,1719180633625,-852.82,0.00011241,2]
[330219734,1719180633636,-852.82,0.00011241,2]
[330219735,1719180633646,-852.82,0.00011241,2]
[330219736,1719180633657,-852.82,0.00011241,2]
[330219737,1719180633667,-852.82,0.00011241,2]
[330219738,1719180633679,-491.56025274,0.00011299,2]
[330219739,1719180633688,-491.56025274,0.00011299,2]
[330219740,1719180633698,-167.2,0.00011339,2]
[330219741,1719180633708,-529.72889138,0.00011394,2]
[330219742,1719180633717,-395.01895338,0.00011394,2]
[330219743,1719180633726,-723.34,0.00011478,2]
[330219744,1719180633736,-300.0,0.00011652,2]
[330219745,1719180633746,-414.99352656,0.00011657,2]
[330219746,1719180633756,-420.0,0.00011668,2]
[330219747,1719180633765,-202.44445,0.00011675,2]
[330219748,1719180633775,-210.0,0.00011676,2]
[330219749,1719180633785,-651.5547322,0.00011699,2]
[330219750,1719180633794,-155.0,0.00011699,2]
[330219751,1719180633803,-77035.73690544,0.000117,2]
[330219752,1719180633816,-789.65,0.000117,2]
[330219753,1719180633828,-1092.3654325,0.000117,2]
[330219754,1719180633839,-19443.43369877,0.000117,2]
[330219755,1719180633851,-6566.03609594,0.000117,2]
[330219756,1719180633862,-7289.9674728,0.000117,2]
[330219757,1719180633875,-10478.8706778,0.000117,2]
[330219758,1719180633886,-72039.44785019,0.000117,2]
[330219759,1719180633900,-50264.49186656,0.000117,2]
[330219760,1719180633911,-77737.7784,0.000117,2]
[330219761,1719180633923,-515.4286906,0.0001176,2]
[330219762,1719180633935,-312.0,0.00011782,2]
[330219763,1719180633945,-251.017,0.00011818,2]
[330219764,1719180633955,-2484.618,0.00011818,2]
[330219765,1719180633964,-1197.0,0.00011818,2]
[330219766,1719180633974,-38159.0,0.00011818,2]
[330219767,1719180633983,-3000.0,0.0001188,2]
[330219768,1719180633993,-25341.658236,0.000119,2]
[330219769,1719180634003,-155.94476457,0.000119,2]
[330219770,1719180634014,-186.33834045,0.000119,2]
[330219771,1719180634025,-7500.0,0.000119,2]
[330219772,1719180634036,-317.39050288,0.000119,2]
[330219773,1719180634050,-19401.16159718,0.000119,2]
[330219774,1719180634060,-1000.0,0.000119,2]
[330219775,1719180634070,-710.18831292,0.000119,2]
[330219776,1719180634080,-500.0,0.00011904,2]
[330219777,1719180634091,-1069.67493178,0.00011953,2]
[330219778,1719180634102,-14081.0,0.00011954,2]
[330219779,1719180634112,-184.43129772,0.0001199,2]
[330219780,1719180634122,-239.6721302,0.00011991,2]
[330219781,1719180634132,-327.1045229,0.00011991,2]
[330219782,1719180634143,-6362.2162913,0.00011991,2]
[330219783,1719180634153,-239.6721302,0.00011992,2]
[330219784,1719180634163,-311.1975426,0.00011992,2]
[330219785,1719180634174,-6052.8239039,0.00011992,2]
[330219786,1719180634183,-209.38100041,0.00011999,2]
[330219787,1719180634193,-5907.85263176,0.00011999,2]
[330219788,1719180634205,-590.0,0.00012,2]
[330219789,1719180634215,-34777.60058145,0.00012,2]
[330219790,1719180634227,-299.99,0.00012,2]
[330219794,1719180638687,-183.57425054,0.00011222,2]
[330219795,1719180638697,-202.44445,0.00011667,2]
[330219796,1719180638707,-956.15783734,0.00012,2]
[330219797,1719180638720,-2831.60374502,0.00012,2]
[330219799,1719180639003,-5283.43737236,0.00012,2]
[330219800,1719180639015,-7832.93162208,0.00012,2]
[330219801,1719180640735,-4734.95700281,0.00012,2]
[330219802,1719180640799,-592928.34112042,0.00012,2]
[330219803,1719180640810,-1791.76807849,0.00012,2]
[330219804,1719180641053,-206.44790116,0.000116,2]
[330219805,1719180641063,-6716.35232291,0.00012,2]
[330219806,1719180643568,-206.44790114,0.00011675,2]
[330219807,1719180643578,-1391.78629956,0.00012,2]
[330219808,1719180643599,-521.65000006,0.00012,2]
[330219815,1719180643654,-1006.14077314,0.00012,2]
[330219817,1719180643666,-153091.48868147,0.00012,2]
[330219822,1719180643854,-7400.80531457,0.00012,2]
[330219824,1719180643865,-4043.23692891,0.00012,2]
[330219826,1719180643876,-533.7760212,0.00012,2]
[330219839,1719180644132,-35736.3529148,0.00012,2]
[330219847,1719180646725,-206.44790114,0.0001175,2]
[330219848,1719180646735,-263.20209886,0.00011999,2]
[330219849,1719180647144,-459.1481951,0.00011999,2]
[330219850,1719180647154,-534.0,0.00012,2]
[330219851,1719180647163,-429827.10028355,0.00012,2]
[330219852,1719180647292,-746.96375166,0.00012,2]
[330219853,1719180647305,-962.63936826,0.00012,2]
[330219855,1719180728706,1792.8,0.00018849,30]
[330219856,1719180764512,178.59,9.515e-05,2]
[330219857,1719180793191,200.0,0.00025452,120]
[330219858,1719180795519,1000.0,0.00025452,120]
[330219859,1719180796246,177.86530003,9.515e-05,2]
[330219861,1719180859190,635.34,9.283e-05,2]
[330219862,1719180987596,1800.0,0.00025,60]
[330219867,1719181298845,1643.4,0.00018849,30]
[330219870,1719181469772,603.57,9.149e-05,2]
[330219872,1719181552292,2560.8341125,0.00025,60]